bitfinex-derivatives/quotes_ETHF0:USTF0_20250712
["timestamp","ask_amount","ask_price","bid_price","bid_amount"]
[1752337729406,2.9452,2928.5,2928.4,3.699]
[1752337729915,3.6279,2928.5,2928.4,3.699]
[1752337730811,2.9452,2928.5,2928.4,3.699]
[1752337731008,3.6279,2928.5,2928.4,3.699]
[1752337731205,4.72407253,2928.5,2928.4,0.9753]
[1752337731404,4.72407253,2928.5,2928.3,0.68273]
[1752337731405,3.62792,2928.4,2928.3,1.65803]
[1752337732313,3.62792,2928.4,2928.3,1.8061]
[1752337732806,1.52255,2928.3,2928.2,0.68275]
[1752337733008,1.52259,2928.1,2928.0,5.69669]
[1752337733319,4.72416253,2928.1,2928.0,5.69672]
[1752337733916,4.72416253,2928.1,2928.0,2.48892]
[1752337734116,4.72416253,2928.1,2928.0,1.8061]
[1752337734513,4.72416253,2928.1,2928.0,2.48892]
[1752337734916,4.72416253,2928.1,2928.0,1.8061]
[1752337735116,1.52264,2927.9,2927.8,1.51365]
[1752337735417,4.72421253,2927.9,2927.8,1.8061]
[1752337735812,4.72421253,2927.9,2927.8,2.48896]
[1752337736714,4.72421253,2927.9,2927.8,1.8061]
[1752337737314,1.52273,2927.6,2927.5,3.0163]
[1752337737509,3.62813,2927.6,2927.5,3.69923]
[1752337737712,3.62813,2927.6,2927.5,2.48903]
[1752337738812,3.62813,2927.5,2927.4,5.69684]
[1752337739109,4.72430253,2927.5,2927.4,5.69684]
[1752337739307,4.72430253,2927.5,2927.4,0.9753]
[1752337739613,2.43323,2927.1,2927.0,1.51384]
[1752337739818,4.72440253,2927.1,2927.0,1.51384]
[1752337740115,1.195,2926.8,2926.4,3.2078]
[1752337740415,0.9104,2927.1,2927.0,0.68305]
[1752337740623,2.0348,2927.0,2926.9,3.69937]
[1752337740820,2.9452,2927.0,2926.9,3.69937]
[1752337741015,2.0348,2927.0,2926.9,3.69937]
[1752337741317,2.71777,2927.4,2927.3,2.48907]
[1752337741515,3.62817,2927.4,2927.3,3.69927]
[1752337741717,2.9452,2927.4,2927.3,3.69927]
[1752337744012,2.0348,2927.4,2927.3,3.69927]
[1752337744212,2.9452,2927.7,2927.6,1.51371]
[1752337744416,2.9452,2927.7,2927.6,2.48901]
[1752337744612,2.9452,2927.7,2927.6,3.69921]
[1752337745119,4.0476,2927.9,2927.8,3.69916]
[1752337745518,5.2426,2927.9,2927.8,3.69916]
[1752337745916,0.9035761,2927.9,2927.8,3.69916]
[1752337746120,2.0348,2928.2,2928.1,3.69909]
[1752337746322,2.09865209,2928.2,2928.1,3.69909]
[1752337746517,0.90365209,2928.2,2928.1,3.69909]
[1752337747623,1.195,2928.4,2928.3,3.69905]
[1752337747823,3.25771832,2928.5,2928.4,3.69902]
[1752337748124,4.16125635,2928.5,2928.4,3.69902]
[1752337749418,5.07165635,2928.5,2928.4,3.69902]
[1752337749619,4.16811832,2928.5,2928.4,3.69902]
[1752337751023,4.85081832,2928.5,2928.4,3.69902]
[1752337751415,4.16811832,2928.5,2928.4,3.69902]
[1752337752527,4.85081832,2928.5,2928.4,3.69902]
[1752337753917,4.16811832,2928.5,2928.4,3.69902]
[1752337754122,4.85081832,2928.5,2928.4,3.69902]
[1752337754326,4.16811832,2928.5,2928.4,3.69902]
[1752337755733,4.85081832,2928.5,2928.4,3.69902]
[1752337756730,4.16811832,2928.5,2928.4,3.69902]
[1752337757232,4.85081832,2928.5,2928.4,2.48882]
[1752337757628,4.16811832,2928.5,2928.4,2.48882]
[1752337758426,4.16811832,2928.5,2928.4,3.65202]
[1752337759732,4.85081832,2928.5,2928.4,3.65202]
[1752337765039,4.85081832,2928.5,2928.4,2.48882]
[1752337766137,0.7778,2928.2,2928.1,0.9716]
[1752337766337,2.9297,2928.2,2928.1,2.47139]
[1752337767239,2.9297,2928.2,2928.1,3.63459]
[1752337769545,3.61247,2928.2,2928.1,3.63459]
[1752337769841,2.9297,2928.2,2928.1,3.63459]
[1752337770338,2.9297,2928.2,2928.1,2.47139]
[1752337773443,2.9297,2928.2,2928.1,3.63459]
[1752337773642,1.22291832,2928.5,2928.4,1.49972]
[1752337773643,2.96111832,2928.5,2928.4,1.49972]
[1752337773844,4.15261832,2928.5,2928.4,3.62322]
[1752337774146,1.22291832,2928.5,2928.4,4.72051892]
[1752337777148,4.946,2929.4,2929.3,1.65411]
[1752337777346,1.7382,2929.4,2929.3,1.65411]
[1752337777545,0.7778,2929.4,2929.3,1.65411]
[1752337777747,1.9693,2929.4,2929.3,1.65411]
[1752337777948,1.9693,2929.7,2929.6,0.68244]
[1752337778146,1.1915,2929.7,2929.6,1.65404]
[1752337778450,2.9297,2929.7,2929.6,1.65404]
[1752337779749,1.9693,2929.7,2929.6,1.65404]
[1752337780158,2.9297,2929.7,2929.6,1.65404]
[1752337780645,3.61212,2929.7,2929.6,0.9716]
[1752337781156,3.61212,2929.7,2929.6,1.65404]
[1752337781552,3.61212,2929.7,2929.6,0.9716]
[1752337781951,3.61212,2929.7,2929.6,1.65404]
[1752337782857,3.61212,2929.7,2929.6,0.9716]
[1752337782858,4.70941892,2929.7,2929.6,0.9716]
[1752337783647,2.83549892,2929.7,2929.2,3.2078]
[1752337783858,4.02299892,2929.4,2929.3,1.66531]
[1752337784458,2.9257,2929.4,2929.3,1.66531]
[1752337787251,1.1875,2929.4,2929.3,1.67371]
[1752337787460,2.938,2929.7,2929.6,1.60924]
[1752337791351,1.9372,2929.7,2929.6,1.60924]
[1752337792656,1.9372,2930.1,2930.0,1.60915]
[1752337792860,2.938,2930.1,2930.0,1.60915]
[1752337793256,4.03529892,2930.1,2930.0,0.68235]
[1752337793458,4.03529892,2930.1,2930.0,1.59795]
[1752337793864,4.03529892,2930.1,2930.0,1.60915]
[1752337796163,4.71762892,2930.1,2930.0,1.59795]
[1752337796662,4.71762892,2930.1,2930.0,1.60915]
[1752337796865,4.71762892,2930.1,2930.0,0.68235]
[1752337797767,4.03529892,2930.1,2930.0,0.68235]
[1752337798066,4.03529892,2930.1,2930.0,1.60915]
[1752337799067,4.71762892,2930.1,2930.0,1.60915]
[1752337799264,4.03529892,2930.1,2930.0,1.60915]
[1752337799464,4.71762892,2930.1,2930.0,1.60915]
[1752337799764,4.03529892,2930.1,2930.0,1.60915]
[1752337800465,2.938,2930.1,2930.0,1.60915]
[1752337800964,1.7505,2930.0,2929.7,0.9156]
[1752337801170,1.7505,2929.6,2929.5,3.90147]
[1752337801468,2.938,2929.6,2929.5,3.90147]
[1752337801668,2.938,2929.6,2929.5,4.81707]
[1752337802070,2.938,2929.6,2929.5,1.60927]
[1752337802467,4.03529892,2929.6,2929.5,0.68247]
[1752337802973,4.03529892,2929.6,2929.5,1.60927]
[1752337803669,2.938,2929.6,2929.5,1.60927]
[1752337803964,1.9372,2929.6,2929.5,2.70656892]
[1752337804170,1.1875,2929.6,2929.5,2.71496892]
[1752337804769,3.2078,2929.9,2929.5,2.71496892]
[1752337804770,5.145,2929.9,2929.8,0.6936]
[1752337805068,6.1458,2929.9,2929.8,1.6092]
[1752337810074,1.1875,2929.9,2929.8,1.6176]
[1752337811067,1.9372,2929.9,2929.8,1.6092]
[1752337815573,2.9075,2929.9,2929.8,1.6092]
[1752337817668,0.7497,2929.9,2929.8,1.6092]
[1752337817874,4.30509892,2930.3,2930.2,3.5985]
[1752337817875,3.9836,2930.3,2930.2,3.5985]
[1752337818063,4.88317988,2930.3,2930.2,3.5985]
[1752337818270,4.9539,2930.3,2930.2,3.5985]
[1752337818664,4.9539,2930.3,2930.2,2.4275]
[1752337818874,4.9539,2930.3,2930.2,1.45]
[1752337819067,2.64571813,2930.3,2930.2,1.45]
[1752337819272,1.7461,2930.3,2930.2,1.45]
[1752337819665,1.7461,2930.3,2930.0,0.9775]
[1752337819666,0.7758,2930.3,2930.0,0.9775]
[1752337819871,2.8952,2929.9,2929.8,2.4276]
[1752337820167,2.8952,2929.9,2929.8,3.5986]
[1752337821174,3.57749,2930.3,2930.2,0.6823]
[1752337821374,4.47711252,2930.3,2930.2,0.6823]
[1752337821575,2.42841,2930.2,2930.1,0.68231]
[1752337821775,3.57751,2930.2,2930.1,0.68231]
[1752337822376,4.67480892,2930.2,2930.1,0.68231]
[1752337824372,3.99249892,2930.2,2930.1,0.68231]
[1752337824875,4.67479892,2930.2,2930.1,0.68231]
[1752337825778,3.99249892,2930.2,2930.1,0.68231]
[1752337826779,2.8952,2930.2,2930.1,0.68231]
[1752337827172,2.8952,2930.2,2930.1,1.45001]
[1752337827580,2.8952,2930.2,2930.1,3.59851]
[1752337827869,2.8952,2930.2,2929.7,25.12803]
[1752337827870,4.67479892,2930.2,2929.7,3.85453]
[1752337828070,2.8952,2930.1,2930.0,0.68234]
[1752337828275,3.57755,2930.1,2930.0,0.68234]
[1752337828974,1.70585,2930.1,2929.6,4.1853]
[1752337829170,3.99249892,2929.7,2929.6,3.89024]
[1752337829477,3.99249892,2929.7,2929.6,0.68244]
[1752337829670,3.99249892,2929.7,2929.6,1.45014]
[1752337829872,3.99249892,2929.7,2929.6,2.42764]
[1752337830275,3.99249892,2929.7,2929.6,3.59864]
[1752337830468,2.8952,2929.7,2929.6,3.59864]
[1752337830980,6.103,2930.1,2930.0,3.59855]
[1752337831482,3.2078,2930.1,2930.0,4.69584892]
[1752337831681,3.2078,2930.1,2930.0,3.59855]
[1752337831682,3.9836,2930.1,2930.0,3.59855]
[1752337831882,6.103,2930.1,2930.0,3.59855]
[1752337833381,2.8952,2930.1,2930.0,3.59855]
[1752337835373,3.99249892,2930.1,2930.0,2.42755]
[1752337836583,3.99249892,2930.1,2930.0,1.45005]
[1752337837484,3.99249892,2930.1,2930.0,0.68235]
[1752337838586,4.89344486,2930.1,2930.0,0.68235]
[1752337839583,5.57577486,2930.1,2930.0,0.68235]
[1752337842087,4.89344486,2930.1,2930.0,0.68235]
[1752337842281,5.57577486,2930.1,2930.0,0.68235]
[1752337842480,2.8952,2929.8,2929.7,1.45012]
[1752337842676,0.7758,2929.6,2929.5,1.7452]
[1752337842880,2.8952,2929.6,2929.5,2.42767]
[1752337843577,3.99249892,2929.6,2929.5,2.42767]
[1752337843786,2.8952,2929.6,2929.5,3.57747]
[1752337843983,1.09729892,2930.0,2929.3,2.80356892]
[1752337843984,2.8964,2929.9,2929.6,1.70607]
[1752337844180,2.8964,2929.9,2929.8,3.568]
[1752337844378,3.79736753,2929.9,2929.8,3.568]
[1752337844688,0.90096753,2929.9,2929.8,3.568]
[1752337845276,3.2078,2930.2,2929.8,2.8856]
[1752337845481,3.9807,2930.2,2930.1,1.44063]
[1752337845680,2.82672163,2930.2,2930.1,3.52673]
[1752337845882,0.90062163,2930.2,2930.1,3.52673]
[1752337846285,1.67352163,2930.2,2930.1,3.52673]
[1752337846594,1.9261,2930.2,2930.1,3.52673]
[1752337847482,1.0007,2930.4,2930.3,0.68228]
[1752337847688,3.82730763,2930.4,2930.3,3.52668]
[1752337847984,2.9268,2930.4,2930.3,3.52668]
[1752337849387,3.60906,2930.4,2930.3,3.52668]
[1752337849981,2.9268,2930.4,2930.3,3.52668]
[1752337851589,3.60906,2930.4,2930.3,2.37688]
[1752337852588,2.9268,2930.4,2930.3,2.37688]
[1752337852794,4.50921321,2930.4,2930.3,2.37688]
[1752337853390,5.60651213,2930.4,2930.3,2.37688]
[1752337854189,5.60651213,2930.4,2930.3,1.44058]
[1752337854683,0.7729,2930.2,2930.1,0.68233]
[1752337854890,4.70639892,2930.2,2930.1,0.68233]
[1752337856187,4.02409892,2930.2,2930.1,2.37693]
[1752337856588,4.02409892,2930.2,2930.1,3.52673]
[1752337856884,2.9268,2930.2,2930.1,3.52673]
[1752337858489,1.1532,2930.4,2930.3,3.52668]
[1752337858693,2.9268,2930.6,2930.5,3.52663]
[1752337858986,4.5089999,2930.6,2930.5,2.37683]
[1752337859884,4.5089999,2930.6,2930.5,3.52663]
[1752337860185,3.60901,2930.6,2930.5,2.37683]
[1752337860390,4.50893626,2930.6,2930.5,2.37683]
[1752337861188,4.50893626,2930.6,2930.5,3.52663]
[1752337861389,3.60901,2930.6,2930.5,3.52663]
[1752337861790,0.68228,2930.3,2930.2,2.0861]
[1752337861989,1.9261,2930.1,2930.0,1.44062]
[1752337862294,4.70642892,2930.1,2930.0,1.44062]
[1752337863489,4.02409892,2930.1,2930.0,3.52672]
[1752337863692,4.70642892,2930.1,2930.0,3.52672]
[1752337864496,4.70642892,2930.1,2930.0,1.44062]
[1752337865898,4.70642892,2930.1,2930.0,2.37692]
[1752337867492,4.70642892,2930.1,2930.0,3.52672]
[1752337869498,4.70642892,2930.1,2930.0,0.68232]
[1752337869902,4.70642892,2930.1,2930.0,1.44062]
[1752337870198,4.70642892,2930.1,2930.0,0.7583]
[1752337870398,4.70642892,2930.1,2930.0,1.44065]
[1752337870903,2.9268,2929.9,2929.6,0.9363]
[1752337871197,2.9268,2929.8,2929.7,2.5905]
[1752337871395,0.7729,2929.9,2929.8,0.7583]
[1752337871699,2.9268,2929.9,2929.8,2.8444]
[1752337871901,2.9268,2929.9,2929.8,3.5268]
[1752337874196,3.60917,2929.9,2929.8,3.5268]
[1752337878096,3.60917,2929.9,2929.8,0.6824]
[1752337879606,2.9268,2929.9,2929.8,1.414]
[1752337879906,3.60917,2929.9,2929.8,1.414]
[1752337881503,3.60917,2929.9,2929.8,0.6824]
[1752337883508,0.7286,2929.7,2929.4,3.2078]
[1752337883712,4.51586892,2929.5,2929.4,0.68249]
[1752337885411,2.7361,2929.5,2929.4,3.59689]
[1752337885612,3.41857,2929.5,2929.4,3.59689]
[1752337886108,3.41857,2929.5,2929.4,1.41409]
[1752337886312,4.51586892,2929.5,2929.4,0.68249]
[1752337890120,1.41111,2929.4,2929.3,1.4141]
[1752337890317,0.68251,2929.3,2929.2,1.0001]
[1752337890622,3.41869,2929.1,2929.0,1.41417]
[1752337890826,4.51598892,2929.1,2929.0,0.68257]
[1752337891617,4.51598892,2929.1,2928.9,0.6826]
[1752337891618,2.34161,2929.0,2928.9,0.6826]
[1752337891819,3.41871,2929.0,2928.9,0.6826]
[1752337892219,1.41121,2928.9,2928.8,1.0001]
[1752337892422,1.41125,2928.7,2928.6,2.41435]
[1752337892722,3.41875,2928.7,2928.6,2.41435]
[1752337894021,3.41875,2928.7,2928.6,1.41425]
[1752337894218,3.41875,2928.7,2928.6,0.68265]
[1752337894615,2.7361,2928.7,2928.6,2.41435]
[1752337894918,2.7361,2928.7,2928.6,3.59705]
[1752337897422,3.41875,2928.7,2928.6,3.59705]
[1752337898527,4.51604892,2928.7,2928.6,2.41435]
[1752337898722,4.51604892,2928.7,2928.6,1.41425]
[1752337898923,4.51604892,2928.7,2928.6,0.7316]
[1752337899527,4.51604892,2928.7,2928.6,1.41428]
[1752337899825,4.51604892,2928.7,2928.6,0.68268]
[1752337900326,2.7361,2928.7,2928.6,3.59708]
[1752337900927,3.41875,2928.7,2928.6,3.59708]
[1752337903629,3.41875,2928.7,2928.6,2.41438]
[1752337903824,3.41875,2928.7,2928.6,1.41428]
[1752337904027,3.41875,2928.7,2928.6,2.41438]
[1752337904228,3.41875,2928.7,2928.6,3.57258]
[1752337904929,2.7361,2928.7,2928.6,3.57258]
[1752337905227,3.41875,2928.7,2928.6,3.57258]
[1752337905429,3.41875,2928.7,2928.6,2.41438]
[1752337905622,3.41875,2928.7,2928.6,3.57258]
[1752337906129,3.41875,2928.7,2928.6,0.68268]
[1752337906728,3.41875,2928.7,2928.6,1.43398]
[1752337906928,3.41875,2928.7,2928.6,2.43298]
[1752337907130,3.41875,2928.7,2928.6,3.59118]
[1752337907932,3.41875,2928.7,2928.6,2.43298]
[1752337910030,3.41875,2928.7,2928.6,3.59118]
[1752337910629,2.7361,2928.7,2928.6,3.59118]
[1752337910825,3.41218,2929.7,2928.6,3.59118]
[1752337910826,4.6085,2929.4,2929.3,0.68251]
[1752337911124,3.2078,2929.7,2929.6,3.59094]
[1752337911325,4.10786816,2929.7,2929.6,3.59094]
[1752337911530,3.2078,2929.7,2929.6,3.59094]
[1752337912124,1.0862,2929.9,2929.8,0.6824]
[1752337912326,2.7119,2929.9,2929.8,2.5919]
[1752337912527,3.39427,2929.9,2929.8,3.5909]
[1752337912934,3.39427,2929.9,2929.8,2.9085]
[1752337913539,3.39427,2929.9,2929.8,3.5909]
[1752337913837,2.7119,2929.9,2929.8,3.5909]
[1752337914229,2.7119,2929.9,2929.8,2.9085]
[1752337914431,3.39427,2929.9,2929.8,2.9085]
[1752337914831,2.7119,2929.9,2929.8,3.5909]
[1752337915232,2.7119,2929.9,2929.8,2.9085]
[1752337915436,2.7119,2929.9,2929.8,3.5909]
[1752337915844,2.7119,2930.1,2930.0,2.59183]
[1752337916035,3.39423,2930.1,2930.0,1.9095]
[1752337916538,3.39423,2930.1,2930.0,3.59085]
[1752337916741,3.39423,2930.1,2930.0,2.9085]
[1752337918938,3.39423,2930.1,2930.0,3.59085]
[1752337919634,2.7119,2930.3,2930.2,1.4336]
[1752337919835,3.3942,2930.3,2930.2,2.9085]
[1752337920232,3.3942,2930.3,2930.2,3.5908]
[1752337920435,3.2078,2930.7,2930.6,3.59071]
[1752337920436,3.926,2930.7,2930.6,3.59071]
[1752337920638,3.2078,2930.7,2930.6,4.68800892]
[1752337921143,5.9197,2930.7,2930.6,3.59071]
[1752337921642,2.7119,2930.7,2930.6,3.59071]
[1752337922041,3.39409,2930.7,2930.6,2.9085]
[1752337922247,3.39409,2930.7,2930.6,3.59071]
[1752337923443,2.7119,2930.7,2930.6,3.59071]
[1752337923944,3.39409,2930.7,2930.6,3.59071]
[1752337924845,2.7119,2930.7,2930.6,3.59071]
[1752337926539,3.39409,2930.7,2930.6,3.59071]
[1752337929135,3.39409,2930.7,2930.6,2.9085]
[1752337929539,3.39409,2930.7,2930.6,3.59071]
[1752337930044,3.39409,2930.7,2930.6,2.9085]
[1752337930746,3.39409,2930.7,2930.6,3.59071]
[1752337931743,3.39409,2930.7,2930.6,2.9085]
[1752337932244,2.48659,2930.7,2930.6,3.59071]
[1752337932646,3.39409,2930.7,2930.6,3.59071]
[1752337933043,2.7119,2930.7,2930.6,3.59071]
[1752337933445,3.39409,2930.7,2930.6,3.59071]
[1752337933847,2.7119,2930.7,2930.6,3.59071]
[1752337934249,3.39409,2930.7,2930.6,3.59071]
[1752337936646,3.39409,2930.7,2930.6,2.9085]
[1752337936853,4.49138892,2930.7,2930.6,1.7503]
[1752337937048,3.39409,2930.7,2930.6,1.7503]
[1752337937249,3.39409,2930.7,2930.6,2.883]
[1752337937552,3.39409,2930.7,2930.6,1.7503]
[1752337938854,3.39409,2930.7,2930.6,2.43251]
[1752337939151,3.39409,2930.7,2930.6,3.56521]
[1752337940345,3.39409,2930.7,2930.6,2.883]
[1752337941149,3.39409,2930.7,2930.6,3.56521]
[1752337945650,3.39409,2930.7,2930.6,2.883]
[1752337945854,3.39409,2930.7,2930.6,3.56521]
[1752337946554,2.7119,2930.7,2930.6,3.56521]
[1752337946858,3.39409,2930.7,2930.6,3.56521]
[1752337949157,4.29845994,2930.7,2930.6,3.56521]
[1752337949353,3.61626994,2930.7,2930.6,3.56521]
[1752337949553,4.29845994,2930.7,2930.6,3.56521]
[1752337949751,3.61626994,2930.7,2930.6,3.56521]
[1752337949952,2.7119,2930.7,2930.6,3.56521]
[1752337952849,1.1039,2931.2,2931.1,2.51189]
[1752337953157,0.90499101,2931.2,2931.1,6.81698892]
[1752337953559,0.90499101,2931.2,2931.1,4.52428892]
[1752337953761,3.51422,2931.4,2931.3,1.37915]
[1752337954061,4.41875956,2931.4,2931.3,1.6122]
[1752337954357,4.41875956,2931.4,2931.3,2.29425]
[1752337954658,4.41875956,2931.4,2931.3,3.42695]
[1752337955959,4.41875956,2931.4,2931.3,2.7449]
[1752337956856,4.41875956,2931.4,2931.3,3.42695]
[1752337957061,4.41875956,2931.4,2931.3,2.7449]
[1752337957556,4.41875956,2931.4,2931.3,3.42695]
[1752337957957,3.51422,2931.4,2931.3,3.42695]
[1752337958150,2.8322,2931.4,2931.3,3.42695]
[1752337958355,1.8486,2931.4,2931.3,4.52424892]
[1752337958559,1.8486,2931.4,2931.3,3.42695]
[1752337958768,2.8322,2931.4,2931.3,3.42695]
[1752337959157,1.8486,2931.4,2931.3,3.42695]
[1752337959458,2.8322,2931.4,2931.3,3.42695]
[1752337959653,0.68199,2931.6,2931.2,1.70514]
[1752337959654,1.1039,2931.5,2931.2,1.70514]
[1752337959854,1.1039,2931.5,2931.4,2.29422]
[1752337960053,1.1039,2931.5,2931.4,3.42692]
[1752337960560,2.0875,2931.5,2931.4,3.42692]
[1752337960760,2.8322,2931.5,2931.4,3.42692]
[1752337961757,3.51417,2931.7,2931.6,2.51178]
[1752337961961,4.41683693,2931.7,2931.6,2.7449]
[1752337962156,3.51417,2931.7,2931.6,3.42688]
[1752337962464,3.51417,2931.7,2931.6,2.7449]
[1752337962760,3.51417,2931.7,2931.6,3.42688]
[1752337962964,4.41667427,2931.7,2931.6,3.42688]
[1752337963359,4.41667427,2931.7,2931.6,2.7449]
[1752337963963,4.41667427,2931.7,2931.6,3.42688]
[1752337965760,3.43307427,2931.7,2931.6,3.42688]
[1752337965958,2.75110427,2931.7,2931.6,4.52417892]
[1752337966155,2.75110427,2931.7,2931.6,3.42688]
[1752337966361,3.68760427,2931.7,2931.6,3.42688]
[1752337968061,2.75110427,2931.7,2931.6,3.42688]
[1752337968262,0.90250427,2931.7,2931.6,3.42688]
[1752337968559,2.7822,2931.9,2931.8,1.38483]
[1752337968865,3.68387541,2931.9,2931.8,3.35973]
[1752337969067,3.2078,2932.4,2931.8,3.35973]
[1752337969068,3.2078,2932.4,2932.3,1.38472]
[1752337969265,3.2078,2932.4,2932.3,3.35962]
[1752337969266,5.95513585,2932.4,2932.3,3.35962]
[1752337969466,6.89163585,2932.4,2932.3,3.35962]
[1752337969664,3.68383585,2932.4,2932.3,3.35962]
[1752337976562,1.99323585,2932.4,2932.3,3.35962]
[1752337976766,0.90163585,2932.4,2932.3,3.35962]
[1752337977362,1.99323585,2932.4,2932.3,3.35962]
[1752337977671,0.90163585,2932.4,2932.3,3.35962]
[1752337977871,0.90163585,2932.4,2932.3,6.56742]
[1752337978265,5.20673477,2932.4,2931.8,2.6778]
[1752337978571,0.90163585,2932.3,2932.2,3.35964]
[1752337978866,2.7822,2933.0,2932.9,2.6778]
[1752337979468,2.7822,2933.0,2932.9,3.35948]
[1752337980471,3.46385,2933.0,2932.9,2.6778]
[1752337980668,2.7822,2932.7,2932.3,1.0312]
[1752337980863,2.7822,2932.7,2930.4,1.09729892]
[1752337980864,0.68188,2932.1,2932.0,1.0312]
[1752337981062,0.7541,2931.8,2931.7,2.6778]
[1752337981269,0.68198,2931.7,2931.5,3.2078]
[1752337981472,2.7822,2931.6,2931.5,3.9107]
[1752337981663,4.56147892,2931.6,2931.5,0.7029]
[1752337981864,0.7541,2931.4,2931.3,50.1452]
[1752337982172,0.7541,2931.4,2931.3,1.6466]
[1752337982173,3.46423,2931.4,2931.3,1.6466]
[1752337982770,2.7822,2931.4,2931.3,2.32865]
[1752337982975,2.7822,2931.4,2931.3,3.35985]
[1752337983168,3.46423,2931.4,2931.3,2.6778]
[1752337983367,3.46423,2931.4,2931.3,3.35985]
[1752337983569,1.6906,2931.6,2931.5,1.3849]
[1752337983772,2.7822,2931.6,2931.5,3.3598]
[1752337986476,3.40783,2933.4,2931.5,3.3598]
[1752337986477,1.0916,2931.9,2931.8,2.6778]
[1752337986676,1.8457,2931.9,2931.8,3.35973]
[1752337986870,2.7822,2931.9,2931.8,3.35973]
[1752337987672,5.99,2932.1,2932.0,3.35969]
[1752337990072,3.2078,2932.1,2932.0,4.45698892]
[1752337990470,5.99,2932.4,2932.3,1.38472]
[1752337990676,5.99,2932.4,2932.3,3.35962]
[1752337991574,3.9619,2932.4,2932.3,3.35962]
[1752337991976,1.8457,2932.6,2932.5,3.35957]
[1752337992479,2.7822,2932.6,2932.5,3.35957]
[1752337998177,0.9365,2932.6,2932.5,3.35957]
[1752337998379,0.9365,2932.6,2932.5,4.34797]
[1752337998886,1.7652,2933.0,2932.9,3.48478]
[1752337999184,1.7652,2933.0,2932.9,4.58207892]
[1752337999577,1.7652,2933.0,2932.9,3.48478]
[1752338001184,1.7652,2933.0,2932.9,2.8031]
[1752338001380,0.7218,2932.6,2932.5,2.72967]
[1752338001688,1.7652,2932.6,2932.5,3.44017]
[1752338001881,1.7652,2932.6,2932.5,4.42857]
[1752338004880,2.44695,2932.6,2932.5,4.42857]
[1752338005076,3.54424892,2932.6,2932.5,0.9437]
[1752338005280,1.0434,2932.1,2931.7,2.0926]
[1752338005481,0.7218,2931.8,2931.7,3.48506]
[1752338005684,1.7652,2931.8,2931.7,3.48506]
[1752338005881,1.7652,2931.8,2931.7,2.49666]
[1752338006082,1.7652,2931.8,2931.7,3.48506]
[1752338006776,1.7652,2931.8,2931.7,2.38086]
[1752338006981,4.973,2932.4,2932.3,2.38072]
[1752338007182,4.973,2932.4,2932.3,0.68182]
[1752338007992,5.65479,2932.4,2932.3,0.68182]
[1752338008184,5.65479,2932.4,2931.8,3.2078]
[1752338008185,2.44702,2932.3,2932.2,0.68183]
[1752338008687,1.7652,2932.3,2932.2,0.68183]
[1752338009285,1.7652,2932.3,2932.2,2.38073]
[1752338009486,1.7652,2932.3,2932.2,3.48493]
[1752338012090,4.973,2932.4,2932.3,3.48492]
[1752338012291,4.973,2932.4,2932.3,4.58221892]
[1752338013090,1.7652,2932.4,2932.3,4.58221892]
[1752338013487,1.7652,2932.4,2932.3,3.47801892]
[1752338013687,1.7652,2932.4,2932.3,4.58221892]
[1752338017595,1.7652,2932.4,2932.3,2.38072]
[1752338017998,1.7652,2932.4,2932.3,3.48492]
[1752338018390,2.7283,2932.4,2932.3,3.48492]
[1752338018697,2.7283,2932.4,2932.3,2.38072]
[1752338018897,2.7283,2932.4,2932.3,3.48492]
[1752338019199,2.7283,2932.6,2932.5,1.39227]
[1752338019496,4.973,2932.8,2932.7,3.48482]
[1752338019696,4.973,2932.8,2932.7,4.58211892]
[1752338019896,5.9361,2932.8,2932.7,4.58211892]
[1752338021197,1.7652,2932.5,2932.4,25.76269]
[1752338021399,2.7283,2932.5,2932.4,26.86689]
[1752338021798,3.2078,2932.8,2932.7,1.39222]
[1752338021799,4.973,2932.8,2932.7,1.39222]
[1752338021992,5.9361,2932.8,2932.7,3.48482]
[1752338023701,5.9361,2932.8,2932.7,10.58211892]
[1752338024200,5.9361,2932.8,2932.7,4.58211892]
[1752338024803,2.7283,2932.8,2932.7,4.58211892]
[1752338025401,2.7283,2932.8,2932.7,3.48482]
[1752338025605,2.7283,2932.8,2932.7,0.68172]
[1752338027006,3.41,2932.8,2932.7,0.68172]
[1752338027500,0.68174,2932.7,2932.5,0.9803]
[1752338027702,0.7551,2932.6,2932.4,3.2078]
[1752338027906,2.8061,2932.5,2932.4,5.56469]
[1752338028105,2.8061,2932.5,2932.4,6.60499]
[1752338028297,2.8061,2932.5,2932.4,5.56469]
[1752338028703,2.8061,2932.5,2932.4,2.35689]
[1752338029502,2.8061,2932.5,2932.4,3.39719]
[1752338030508,2.8061,2932.5,2932.4,2.35689]
[1752338030812,2.8061,2932.5,2932.4,3.39719]
[1752338033011,2.8061,2932.7,2932.6,1.37655]
[1752338033210,2.8061,2932.7,2932.6,3.45414892]
[1752338033407,2.8061,2932.7,2932.6,4.49444892]
[1752338033610,2.8061,2932.9,2932.8,1.3765]
[1752338033910,2.8061,2932.9,2932.8,4.49439892]
[1752338035209,5.0216,2933.1,2933.0,1.37645]
[1752338035413,6.0139,2933.1,2933.0,3.39705]
[1752338035912,4.9552,2933.1,2933.0,3.39705]
[1752338036113,6.0139,2933.1,2933.0,3.39705]
[1752338038117,6.0139,2933.1,2933.0,2.35675]
[1752338038614,6.69553,2933.1,2933.0,2.35675]
[1752338039008,6.69553,2933.1,2932.9,0.68166]
[1752338039306,2.8061,2932.8,2932.7,24.73652]
[1752338039513,2.8061,2932.8,2932.7,25.77682]
[1752338039713,2.8061,2932.8,2932.7,26.75712]
[1752338040414,2.8061,2932.8,2932.7,32.75712]